bitfinex-derivatives/quotes_SOLF0:USTF0_20241206
["timestamp","ask_amount","ask_price","bid_price","bid_amount"]
[1733521434881,2.02,239.19,239.13,6.53160805]
[1733521434882,2.0868,239.15,239.13,6.53160805]
[1733521437785,2.0871,239.12,239.08,2.02]
[1733521437983,2.0871,239.12,239.11,6.53160805]
[1733521438679,2.0871,239.12,239.09,6.53160805]
[1733521438879,2.0868,239.16,239.11,6.53160805]
[1733521439079,2.02,239.19,239.11,6.53160805]
[1733521439692,2.02,239.19,239.13,6.53160805]
[1733521440685,2.0869,239.14,239.13,6.53160805]
[1733521447391,2.0869,239.15,239.13,6.53160805]
[1733521449697,2.02,239.22,239.13,6.53160805]
[1733521449899,2.02,239.22,239.13,8.61860805]
[1733521450293,2.02,239.22,239.15,6.53160805]
[1733521451597,2.0867,239.16,239.15,6.53160805]
[1733521455797,2.0867,239.17,239.15,6.53160805]
[1733521456395,2.0867,239.16,239.15,6.53160805]
[1733521456599,6.53160805,239.19,239.07,2.02]
[1733521456808,6.53160805,239.19,239.11,6.53160805]
[1733521457011,2.087,239.14,239.11,6.53160805]
[1733521457809,2.0871,239.13,239.11,6.53160805]
[1733521461007,2.0871,239.12,239.11,6.53160805]
[1733521463816,6.53160805,239.21,239.08,2.0874]
[1733521464117,2.0871,239.12,239.11,6.53160805]
[1733521465317,2.02,239.16,239.09,6.53160805]
[1733521465711,2.02,239.16,239.02,2.02]
[1733521465913,2.02,239.16,239.09,6.53160805]
[1733521466422,2.0872,239.11,239.09,6.53160805]
[1733521467722,2.0873,239.1,239.09,6.53160805]
[1733521469415,2.0873,239.1,239.07,2.0875]
[1733521469613,2.0873,239.1,239.09,6.53160805]
[1733521472118,2.02,239.16,239.09,6.53160805]
[1733521472421,2.0872,239.11,239.09,6.53160805]
[1733521473020,2.02,239.16,239.09,6.53160805]
[1733521473225,2.02,239.16,239.11,6.53160805]
[1733521474625,2.4365,239.19,239.11,6.53160805]
[1733521474926,2.0,239.18,239.11,6.53160805]
[1733521475724,2.087,239.13,239.11,6.53160805]
[1733521476824,2.0,239.18,239.11,6.53160805]
[1733521477026,2.0,239.18,239.11,8.61870805]
[1733521477920,2.087,239.14,239.11,8.61870805]
[1733521479224,4.1716,239.27,239.13,6.53160805]
[1733521479420,2.0865,239.19,239.18,6.53160805]
[1733521480519,2.0865,239.2,239.18,6.53160805]
[1733521481321,2.29459,239.25,239.18,6.53160805]
[1733521481925,2.0863,239.21,239.18,6.53160805]
[1733521483028,2.0864,239.2,239.15,2.0867]
[1733521483230,2.0864,239.2,239.17,6.53160805]
[1733521483824,2.0864,239.2,239.19,6.53160805]
[1733521484520,2.0864,239.2,239.17,6.53160805]
[1733521486127,2.0864,239.2,239.19,6.53160805]
[1733521486324,2.0865,239.19,239.15,2.0868]
[1733521486526,6.53160805,239.22,239.15,6.53160805]
[1733521486732,6.53160805,239.24,239.15,6.53160805]
[1733521486930,2.0866,239.17,239.15,6.53160805]
[1733521489234,6.53160805,239.24,239.15,6.53160805]
[1733521490235,2.0867,239.16,239.15,6.53160805]
[1733521493228,9.09900805,239.24,239.15,6.53160805]
[1733521493433,2.0866,239.17,239.16,6.53160805]
[1733521494933,2.0867,239.17,239.09,2.0]
[1733521495139,2.0867,239.17,239.14,6.53160805]
[1733521497737,2.0868,239.15,239.14,6.53160805]
[1733521497935,2.0,239.21,239.11,2.0871]
[1733521498135,6.53160805,239.2,239.12,6.53160805]
[1733521499642,2.0869,239.14,239.12,6.53160805]
[1733521500836,2.0868,239.15,239.12,6.53160805]
[1733521501036,6.53160805,239.2,239.07,2.0]
[1733521501333,6.53160805,239.2,239.12,6.53160805]
[1733521502742,6.53160805,239.2,239.11,6.53160805]
[1733521503645,2.0871,239.12,239.11,6.53160805]
[1733521506941,2.0873,239.1,239.05,2.492]
[1733521507241,2.0873,239.1,239.09,6.53160805]
[1733521508944,2.0872,239.12,239.09,6.53160805]
[1733521509144,2.0872,239.12,239.11,6.53160805]
[1733521510345,2.0,239.16,239.08,2.0874]
[1733521510346,2.0872,239.11,239.08,2.0874]
[1733521510540,6.53160805,239.09,238.84,5.27042576]
[1733521510746,6.53160805,238.95,238.88,2.0892]
[1733521510945,6.53160805,238.95,238.87,6.53160805]
[1733521511146,2.0,239.01,238.92,2.0888]
[1733521511345,6.53160805,239.0,238.91,6.53160805]
[1733521511546,6.53160805,238.96,238.82,2.5237]
[1733521511844,6.53160805,238.96,238.81,2.4861]
[1733521511845,6.53160805,238.85,238.83,1.75752318]
[1733521512040,6.53160805,238.85,238.71,2.18993437]
[1733521512242,6.53160805,238.85,238.72,13.87888865]
[1733521512445,6.53160805,238.85,238.73,1.76070695]
[1733521512642,6.53160805,238.85,238.77,6.53160805]
[1733521512940,6.53160805,238.87,238.74,2.0]
[1733521513137,6.53160805,238.87,238.68,2.5237]
[1733521513342,2.0897,238.83,238.69,1.75621971]
[1733521513543,2.0897,238.83,238.79,6.53160805]
[1733521513741,2.0,238.91,238.79,6.53160805]
[1733521514143,2.0892,238.88,238.83,6.53160805]
[1733521514345,2.5175,238.94,238.87,6.53160805]
[1733521514650,4.8428,238.95,238.87,6.53160805]
[1733521514945,2.0888,238.93,238.87,6.53160805]
[1733521515947,4.8428,238.95,238.87,6.53160805]
[1733521516253,2.0888,238.92,238.87,6.53160805]
[1733521516846,2.089,238.91,238.87,6.53160805]
[1733521521742,2.089,238.91,238.89,6.53160805]
[1733521523338,2.089,238.9,238.89,6.53160805]
[1733521525749,2.0888,238.93,238.89,6.53160805]
[1733521525942,2.4294,238.95,238.82,2.0]
[1733521526253,2.4294,238.95,238.9,6.53160805]
[1733521526448,2.0887,238.93,238.92,6.53160805]
[1733521530052,2.0887,238.94,238.92,6.53160805]
[1733521532053,2.0,239.0,238.92,6.53160805]
[1733521532054,43.48,239.15,238.93,2.0]
[1733521532248,6.53160805,239.12,239.05,6.53160805]
[1733521532553,6.53160805,239.12,239.05,3.62348206]
[1733521532855,2.0878,239.04,239.03,6.53160805]
[1733521533055,2.0878,239.04,239.0,2.088]
[1733521534252,2.0878,239.04,238.99,2.0]
[1733521534253,6.53160805,239.08,238.94,4.8566]
[1733521534453,2.088,239.01,238.99,6.53160805]
[1733521537555,8.53160805,239.08,238.99,6.53160805]
[1733521537556,2.088,239.02,238.99,6.53160805]
[1733521537756,2.088,239.02,239.01,6.53160805]
[1733521538857,2.0,239.08,239.01,6.53160805]
[1733521539158,2.0,239.08,239.03,6.53160805]
[1733521539357,2.0,239.08,239.03,3.65456581]
[1733521539754,2.0877,239.05,239.03,3.65456581]
[1733521539954,6.53160805,239.13,239.03,3.65456581]
[1733521540155,8.53160805,239.13,239.05,6.53160805]
[1733521540552,2.0875,239.08,239.05,6.53160805]
[1733521540758,2.0,239.13,239.07,6.53160805]
[1733521540960,6.53160805,239.16,239.09,6.53160805]
[1733521541654,2.0,239.19,239.13,6.53160805]
[1733521541853,7.5981,239.21,239.16,6.53160805]
[1733521542053,7.5981,239.21,239.16,3.6866864]
[1733521542456,2.0864,239.2,239.16,3.6866864]
[1733521542660,6.52635457,239.23,239.15,6.52635457]
[1733521543265,2.0,239.25,239.12,10.35663776]
[1733521543762,0.46046,239.13,239.12,12.44373776]
[1733521544357,0.46046,239.13,239.12,10.35663776]
[1733521545853,0.46046,239.13,239.1,2.0872]
[1733521546052,0.46046,239.13,239.08,2.0]
[1733521547166,2.0872,239.11,239.08,2.0]
[1733521547463,0.46046,239.13,239.04,2.0]
[1733521549361,2.0875,239.07,239.04,2.0]
[1733521549957,2.0874,239.09,239.04,2.0]
[1733521551066,2.0874,239.09,239.05,10.35663776]
[1733521551468,2.0874,239.08,239.05,10.35663776]
[1733521551664,0.46046,239.13,239.05,10.35663776]
[1733521551862,0.46046,239.13,239.04,2.0]
[1733521552865,2.0876,239.06,239.04,2.0]
[1733521559067,0.46046,239.13,239.04,2.0]
[1733521559274,0.46046,239.13,239.05,10.35663776]
[1733521560266,0.46046,239.13,239.07,2.0875]
[1733521560267,2.0872,239.11,239.07,2.0875]
[1733521560770,2.0877,239.05,239.01,4.088]
[1733521561273,0.46046,239.13,239.03,10.35663776]
[1733521561470,0.46046,239.13,239.08,10.35663776]
[1733521562069,2.0872,239.11,239.08,10.35663776]
[1733521562269,2.0872,239.11,239.07,2.0]
[1733521562573,0.46046,239.13,239.07,2.0]
[1733521562772,349.35988809,239.32,239.09,10.36403895]
[1733521562974,4.5656,239.26,239.09,10.36403895]
[1733521563166,4.5656,239.26,239.07,2.0]
[1733521563473,6.52659449,239.2,239.12,6.52659449]
[1733521563675,2.0869,239.15,239.12,6.52659449]
[1733521563871,6.52659449,239.2,239.12,6.52659449]
[1733521564370,6.52659449,239.18,239.09,6.52659449]
[1733521565468,2.0872,239.11,239.09,6.52659449]
[1733521566871,2.0873,239.1,239.09,6.52659449]
[1733521567070,6.52659449,239.16,239.05,2.0]
[1733521567271,6.52659449,239.12,238.98,2.5808]
[1733521567472,6.52659449,239.12,239.02,2.0879]
[1733521567674,6.52659449,239.12,238.98,2.5808]
[1733521567874,6.52659449,239.12,239.04,6.52659449]
[1733521568480,2.0877,239.06,239.04,6.52659449]
[1733521568672,6.52659449,239.12,239.04,6.52659449]
[1733521569678,2.0871,239.1,239.04,6.52659449]
[1733521569883,6.52659449,239.12,239.04,6.52659449]
[1733521570287,2.0874,239.06,239.04,6.52659449]
[1733521570580,2.0,239.13,239.04,6.52659449]
[1733521570883,2.087,239.12,239.07,6.52659449]
[1733521571075,2.0,239.13,239.07,6.52659449]
[1733521571478,2.0872,239.09,239.07,6.52659449]
[1733521574386,2.0872,239.08,239.07,6.52659449]
[1733521574691,2.0,239.13,239.07,6.52659449]
[1733521575785,2.5672,239.15,239.09,6.52659449]
[1733521576782,6.52659449,239.19,239.11,6.52659449]
[1733521577093,8.52659449,239.19,239.11,6.52659449]
[1733521578185,2.087,239.12,239.09,6.52659449]
[1733521586498,6.52659449,239.13,239.05,6.52659449]
[1733521587298,291.10183297,239.21,239.12,6.52659449]
[1733521587594,2.0,239.27,239.2,6.52659449]
[1733521587792,6.52659449,239.25,239.1,2.0]
[1733521587993,6.52659449,239.25,239.07,2.6007]
[1733521588195,6.52659449,239.23,239.15,6.52659449]
[1733521588493,2.0,239.22,239.07,2.6007]
[1733521588700,2.0,239.22,239.07,5.0394]
[1733521589001,2.0866,239.16,239.14,6.52659449]
[1733521592288,2.0866,239.16,239.1,2.087]
[1733521592599,2.0866,239.15,239.13,6.52659449]
[1733521592795,2.0,239.17,239.07,5.0394]
[1733521592994,2.0,239.17,239.12,6.52659449]
[1733521593696,2.0869,239.13,239.12,6.52659449]
[1733521595991,2.0863,239.19,239.12,6.52659449]
[1733521596189,2.02,239.18,239.16,6.52659449]
[1733521596394,2.3809,239.21,239.16,6.52659449]
[1733521596595,2.02,239.2,239.16,6.52659449]
[1733521597393,2.0865,239.17,239.16,6.52659449]
[1733521597593,2.4811,239.22,239.16,6.52659449]
[1733521597794,2.02,239.21,239.19,6.52659449]
[1733521598393,6.52659449,239.28,239.19,6.52659449]
[1733521598589,2.0862,239.2,239.19,6.52659449]
[1733521598791,2.4124,239.28,239.19,6.52659449]
[1733521599001,2.02,239.27,239.21,6.52659449]
[1733521599197,2.02,239.27,239.1,6.52659449]
[1733521599198,2.0862,239.2,239.19,6.52659449]
[1733521604702,2.0865,239.16,239.11,2.02]
[1733521604903,2.02,239.22,239.15,6.52659449]
[1733521606607,2.0867,239.16,239.15,6.52659449]
[1733521606806,6.52659449,239.21,239.08,5.2012]
[1733521607007,6.52659449,239.19,239.12,6.52659449]
[1733521607202,2.0869,239.13,239.12,6.52659449]
[1733521611906,2.0871,239.11,239.1,6.52659449]
[1733521617503,2.087,239.12,239.1,6.52659449]
[1733521618202,6.52659449,239.11,238.98,2.4468]
[1733521618402,2.02,239.13,239.0,6.52659449]
[1733521618403,6.52659449,239.08,239.0,6.52659449]
[1733521618608,6.52659449,239.06,238.98,6.52659449]
[1733521618809,2.02,239.05,238.98,6.52659449]
[1733521619113,2.02,239.05,238.96,2.0883]
[1733521619309,2.0878,239.03,239.0,6.52659449]
[1733521619514,2.02,239.05,238.98,6.52659449]
[1733521619810,2.02,239.05,239.0,6.52659449]
[1733521620208,2.02,239.05,239.02,6.52659449]
[1733521620706,2.0877,239.04,239.02,6.52659449]
[1733521622809,2.0878,239.03,239.02,6.52659449]
[1733521623010,2.0878,239.03,239.0,6.52659449]
[1733521624113,2.0878,239.03,239.01,6.52659449]
[1733521627618,2.0878,239.03,238.99,2.0881]
[1733521627923,2.0878,239.03,239.0,6.52659449]
[1733521629123,2.3672,239.1,239.02,6.52659449]
[1733521629322,2.0,239.09,239.04,6.52659449]
[1733521629524,2.0,239.08,239.04,6.52659449]
[1733521629827,2.0875,239.07,239.04,6.52659449]
[1733521630128,8.52659449,239.08,239.01,6.52659449]
[1733521631219,2.0878,239.03,239.01,6.52659449]
[1733521632826,2.0,239.11,238.95,8.52659449]
[1733521633124,2.0,239.1,239.06,6.52659449]
[1733521633826,2.0878,239.04,239.0,2.0881]
[1733521634023,2.0878,239.04,239.03,6.52659449]
[1733521634324,2.0,239.1,239.03,6.52659449]
[1733521635721,2.0878,239.04,239.03,6.52659449]
[1733521636121,6.52659449,239.11,238.98,2.0882]
[1733521636329,5.0554,239.18,238.93,5.024]
[1733521636330,6.52659449,239.07,238.93,5.024]
[1733521636524,6.52659449,239.05,238.98,6.52659449]
[1733521637017,2.0,239.06,238.98,6.52659449]
[1733521637018,2.0882,239.0,238.98,6.52659449]
[1733521638127,5.0216,239.09,238.92,2.4468]
[1733521638128,2.0,239.01,238.92,2.4468]
[1733521638425,6.52659449,239.04,238.96,6.52659449]
[1733521638426,2.0,239.0,238.96,6.52659449]
[1733521638832,2.0882,238.99,238.96,6.52659449]
[1733521639032,2.0,239.0,238.96,6.52659449]
[1733521639628,2.0,239.0,238.97,6.44960363]
[1733521640731,2.0883,238.98,238.97,6.44960363]
[1733521642730,2.0883,238.98,238.84,5.2002]
[1733521642731,6.44960363,238.98,238.91,6.44960363]
[1733521642931,2.0,238.97,238.91,6.44960363]
[1733521644138,2.089,238.91,238.87,2.0892]
[1733521644328,2.22,238.9,238.73,4.8529]
[1733521644528,6.44960363,238.8,238.64,2.18409192]
[1733521644733,2.0901,238.78,238.7,2.0907]
[1733521644932,2.42,238.79,238.65,2.5202]
[1733521645431,8.86960363,238.78,238.7,6.44960363]
[1733521645639,2.42,238.77,238.65,2.5202]
[1733521645832,2.0905,238.73,238.72,6.44960363]
[1733521646135,2.42,238.77,238.72,6.44960363]
[1733521646336,2.42,238.77,238.74,6.44960363]
[1733521646635,2.42,238.77,238.68,10.09964887]
[1733521647230,7.4918,238.84,238.68,10.09964887]
[1733521647428,12.51964887,238.83,238.68,10.09964887]
[1733521647633,2.0903,238.75,238.68,10.09964887]
[1733521648236,2.0902,238.76,238.68,10.09964887]
[1733521648437,2.42,238.77,238.68,10.09964887]
[1733521649340,2.42,238.77,238.68,12.19054887]
[1733521649537,2.42,238.77,238.68,10.09964887]
[1733521650130,2.0901,238.78,238.68,10.09964887]
[1733521650431,2.0901,238.78,238.7,10.09964887]
[1733521650632,2.0902,238.77,238.7,2.0907]
[1733521650938,2.42,238.79,238.67,10.09964887]
[1733521652041,2.42,238.79,238.65,4.6113]
[1733521652239,2.42,238.79,238.65,2.5202]
[1733521652633,10.09964887,238.77,238.65,2.5202]
[1733521652941,10.09964887,238.77,238.56,4.8529]
[1733521652942,10.09964887,238.74,238.6,10.09964887]
[1733521653136,10.09964887,238.74,238.61,4.64192284]
[1733521653137,2.091,238.68,238.61,4.64192284]
[1733521653437,2.42,238.67,238.62,1.7852047]
[1733521653641,2.42,238.67,238.53,2.17617181]
[1733521653940,2.42,238.67,238.51,4.9855]
[1733521654137,2.42,238.67,238.54,4.63811322]
[1733521654334,2.42,238.67,238.55,1.78373948]
[1733521654539,2.42,238.67,238.51,12.70974887]
[1733521654842,2.42,238.67,238.54,10.09964887]
[1733521655141,2.42,238.67,238.55,1.78196637]
[1733521655338,2.42,238.67,238.54,10.09964887]
[1733521655543,2.42,238.66,238.54,10.09964887]
[1733521656039,2.0912,238.65,238.56,2.0919]
[1733521656238,2.0912,238.65,238.54,10.09964887]
[1733521656239,2.42,238.66,238.54,10.09964887]
[1733521658347,2.0913,238.64,238.54,10.09964887]
[1733521659245,2.0913,238.64,238.58,2.0918]
[1733521660038,2.0915,238.62,238.54,10.09964887]
[1733521661740,2.0915,238.62,238.55,2.092]
[1733521662946,2.0913,238.64,238.54,10.09964887]
[1733521663345,2.42,238.66,238.51,2.6101]
[1733521663542,2.0914,238.63,238.57,2.0919]
[1733521663747,10.09964887,238.71,238.56,10.09964887]
[1733521663944,2.0906,238.72,238.66,2.0911]
[1733521664242,12.51964887,238.77,238.63,10.09964887]
[1733521664442,10.09964887,238.74,238.6,10.09964887]
[1733521664841,2.0909,238.69,238.63,2.0914]
[1733521665540,2.42,238.7,238.64,2.0912]
[1733521666853,4.5108,238.7,238.64,2.0912]
[1733521667349,2.0908,238.69,238.64,2.0912]
[1733521668238,2.42,238.7,238.57,2.0919]
[1733521668239,2.0913,238.64,238.57,2.0919]
[1733521668441,2.42,238.64,238.52,12.66614887]
[1733521669244,2.0914,238.63,238.58,2.0918]
[1733521670749,2.42,238.64,238.52,12.66614887]
[1733521670946,10.09964887,238.7,238.52,2.5665]
[1733521671146,2.42,238.69,238.56,10.09964887]
[1733521671444,2.42,238.69,238.63,2.0913]
[1733521671745,2.42,238.7,238.59,10.09964887]
[1733521671940,2.0909,238.69,238.63,2.0913]
[1733521672142,2.44,238.76,238.62,10.09964887]
[1733521672346,2.44,238.76,238.6,2.42]
[1733521672347,4.86,238.76,238.65,10.09964887]
[1733521673547,4.86,238.76,238.68,2.0909]
[1733521673750,2.44,238.76,238.68,2.0909]
[1733521674146,2.0905,238.73,238.69,2.0908]
[1733521674343,2.0905,238.73,238.65,10.09964887]
[1733521675155,2.0905,238.73,238.68,2.0908]
[1733521675356,2.44,238.76,238.61,4.9892]
[1733521675551,2.44,238.76,238.61,15.08884887]
[1733521675755,2.44,238.76,238.65,2.0911]
[1733521676243,2.44,238.76,238.61,15.08884887]
[1733521676449,2.44,238.76,238.66,2.0911]
[1733521676849,2.42,238.77,238.68,2.0909]
[1733521677054,2.42,238.77,238.64,10.09964887]
[1733521677354,2.0907,238.72,238.64,10.09964887]
[1733521678157,2.0907,238.72,238.67,2.091]
[1733521678350,2.0907,238.71,238.67,2.091]
[1733521679357,2.0907,238.71,238.64,10.09964887]
[1733521679555,2.42,238.77,238.68,2.0909]
[1733521679755,2.0906,238.73,238.68,2.0909]
[1733521679950,2.42,238.77,238.68,2.0909]
[1733521680146,2.0909,238.68,238.64,2.0912]
[1733521680348,10.09964887,238.75,238.64,2.0912]
[1733521680855,2.0909,238.68,238.64,2.0912]
[1733521682255,10.09964887,238.75,238.62,10.09964887]
[1733521682449,10.09964887,238.75,238.63,1.73944652]
[1733521682648,10.09964887,238.75,238.62,10.09964887]
[1733521682846,7.4913,238.77,238.63,2.52]
[1733521683052,4.9724,238.77,238.63,2.52]
[1733521683257,2.0905,238.73,238.67,2.0909]
[1733521683464,4.9724,238.77,238.65,10.09964887]
[1733521683755,4.9724,238.77,238.66,1.7405484]
[1733521684062,2.52,238.8,238.67,1.7405484]
[1733521684251,2.52,238.8,238.65,10.09964887]
[1733521684452,2.52,238.8,238.68,10.09964887]
[1733521685058,2.0903,238.76,238.72,2.0905]
[1733521689162,2.52,238.8,238.63,2.52]
[1733521689362,2.0907,238.71,238.67,2.0909]
[1733521689565,2.0907,238.71,238.68,1.75341731]
[1733521689862,2.0905,238.73,238.69,3.84421731]
[1733521690063,2.0905,238.73,238.69,2.0908]
[1733521690262,10.09964887,238.78,238.64,2.52]
[1733521690460,10.09964887,238.78,238.65,4.5614825]
[1733521690759,2.0907,238.71,238.67,2.091]
[1733521690966,2.0907,238.71,238.68,1.75426727]
[1733521691163,2.0907,238.71,238.67,2.091]
[1733521691358,2.0908,238.7,238.68,1.75471374]
[1733521691558,10.09964887,238.78,238.62,10.09964887]
[1733521691559,10.09964887,238.75,238.62,12.61964887]
[1733521691755,2.52,238.74,238.63,4.56351766]
[1733521691955,2.52,238.74,238.64,4.56351766]
[1733521692157,2.52,238.74,238.65,1.75504993]
[1733521692355,2.52,238.74,238.66,1.75553517]
[1733521692556,2.52,238.74,238.67,1.75527342]
[1733521692755,2.52,238.74,238.64,2.0912]
[1733521692962,2.52,238.74,238.65,4.56411671]
[1733521693162,2.52,238.74,238.63,2.0913]
[1733521693363,2.52,238.74,238.64,1.75566677]
[1733521693557,2.52,238.74,238.65,1.75566677]
[1733521693758,2.52,238.74,238.63,2.0913]
[1733521693958,2.0911,238.67,238.64,1.75566254]
[1733521694163,2.0911,238.67,238.63,2.0913]
[1733521694561,2.0911,238.67,238.64,1.75539463]
[1733521694870,2.0911,238.67,238.63,2.0913]
[1733521696564,2.52,238.74,238.62,10.09964887]
[1733521696871,12.61964887,238.82,238.65,10.09964887]
[1733521697163,12.61964887,238.82,238.66,1.755411]
[1733521697469,12.61964887,238.82,238.71,2.0906]
[1733521697870,2.0902,238.77,238.73,2.0905]
[1733521698070,2.52,238.81,238.68,10.09964887]
[1733521698766,2.0901,238.78,238.73,2.0905]
[1733521698969,10.09964887,238.82,238.68,10.09964887]
[1733521699167,12.61964887,238.82,238.68,10.09964887]
[1733521699471,12.61964887,238.82,238.72,2.0905]
[1733521699472,2.0903,238.76,238.72,2.0905]
[1733521700765,2.0904,238.75,238.72,2.0905]
[1733521701265,10.58438887,238.79,238.7,2.0907]
[1733521701471,10.58438887,238.79,238.67,2.52]
[1733521702267,10.09964887,238.76,238.61,4.9892]
[1733521702465,12.61964887,238.76,238.61,4.9892]
[1733521702771,2.0909,238.68,238.61,4.9892]
[1733521703276,10.09964887,238.73,238.63,2.0913]
[1733521703772,10.09964887,238.73,238.61,4.9892]
[1733521703773,2.0911,238.67,238.61,4.9892]
[1733521704070,10.09964887,238.73,238.61,4.9892]
[1733521705472,2.0913,238.64,238.61,7.0807]
[1733521706069,2.0913,238.64,238.59,2.0917]
[1733521706264,12.53964887,238.7,238.52,7.4483]
[1733521706466,10.09964887,238.67,238.53,14.29678603]
[1733521706669,10.09964887,238.69,238.58,2.0918]
[1733521706972,2.44,238.7,238.56,10.09964887]
[1733521707873,2.0912,238.65,238.61,2.0915]
[1733521708073,2.44,238.7,238.56,10.09964887]
[1733521708575,2.44,238.7,238.59,10.09964887]
[1733521708774,2.44,238.7,238.59,12.53964887]
[1733521709073,2.0909,238.68,238.64,2.0913]
[1733521710170,2.0907,238.71,238.66,2.091]
[1733521710375,10.09964887,238.78,238.62,10.09964887]
[1733521710376,2.44,238.76,238.62,10.09964887]
[1733521710578,2.44,238.76,238.63,2.5502]
[1733521710772,2.0906,238.73,238.68,2.0909]
[1733521711173,2.44,238.77,238.68,2.0909]
[1733521711374,2.0906,238.73,238.68,2.0909]
[1733521712371,2.0906,238.73,238.65,10.09964887]
[1733521712577,2.0906,238.73,238.69,2.0908]
[1733521713073,2.44,238.77,238.68,2.0909]
[1733521713074,2.0904,238.74,238.68,2.0909]
[1733521713274,2.44,238.77,238.65,12.53964887]
[1733521713485,5.53114,238.79,238.68,10.09964887]
[1733521713881,0.48474,238.79,238.71,10.09964887]
[1733521714283,0.48474,238.79,238.71,12.53964887]
[1733521714589,2.44,238.83,238.71,12.53964887]
[1733521715179,2.09,238.8,238.71,12.53964887]
[1733521716084,2.09,238.79,238.74,2.0903]
[1733521716987,12.53964887,238.84,238.71,2.44]
[1733521717188,2.44,238.84,238.71,2.44]
[1733521718093,2.44,238.84,238.76,2.0901]
[1733521718591,2.0899,238.81,238.76,2.0901]
[1733521718886,2.44,238.86,238.76,2.0902]
[1733521719185,2.0897,238.82,238.73,10.09964887]
[1733521720190,2.0897,238.82,238.78,2.09]
[1733521720390,2.4925,238.87,238.76,10.09964887]
[1733521720589,2.4925,238.87,238.72,2.5247]
[1733521720590,6.82295642,238.91,238.85,2.0894]
[1733521720795,6.82295642,238.91,238.84,6.45605642]
[1733521721494,2.0892,238.88,238.84,6.45605642]
[1733521721688,6.82295642,238.91,238.84,6.45605642]
[1733521722090,2.0892,238.88,238.84,8.54555642]
[1733521722496,2.0892,238.88,238.84,2.0895]
[1733521727505,2.4559,238.91,238.86,2.0893]
[1733521728702,0.3669,238.91,238.86,2.0893]
[1733521729003,0.3669,238.91,238.84,12.52678773]
[1733521730604,0.3669,238.91,238.87,2.0892]
[1733521731809,0.3669,238.91,238.81,2.5565]
[1733521732099,0.3669,238.91,238.84,2.0895]
[1733521733299,2.0892,238.88,238.84,2.0895]
[1733521733899,0.3669,238.91,238.77,2.4]
[1733521734106,0.3669,238.91,238.79,10.08678773]
[1733521734295,2.0895,238.84,238.8,2.0898]
[1733521736901,2.44,238.94,238.79,10.08678773]
[1733521737106,2.44,238.94,238.77,2.4]
[1733521737408,2.44,238.94,238.79,10.08678773]
[1733521737606,2.0896,238.84,238.79,2.09]
[1733521737806,10.08678773,238.92,238.78,10.08678773]
[1733521738308,10.08678773,238.86,238.69,2.3425]
[1733521738609,7.6514,238.85,238.71,10.08678773]
[1733521739307,2.0901,238.78,238.72,2.0906]
[1733521740305,2.0902,238.77,238.71,12.17738773]
[1733521742603,2.0902,238.77,238.75,6.4607723]
[1733521744415,6.4607723,238.83,238.7,2.4]
[1733521744615,2.0907,238.71,238.65,2.0912]
[1733521744813,2.0907,238.71,238.7,6.4607723]
[1733521745911,2.0903,238.75,238.7,6.4607723]
[1733521746109,2.0903,238.75,238.64,2.4]
[1733521746110,2.0903,238.75,238.74,6.4607723]
[1733521752019,2.0903,238.75,238.72,6.4607723]
[1733521753822,2.0903,238.75,238.74,6.4607723]
[1733521754016,2.0903,238.75,238.72,6.4607723]
[1733521754927,2.0904,238.74,238.72,6.4607723]
[1733521767232,6.4607723,238.79,238.65,2.5831]
[1733521767437,6.4607723,238.75,238.65,2.5831]
[1733521767633,6.4607723,238.75,238.64,2.26]
[1733521767934,6.4607723,238.75,238.68,6.4607723]
[1733521768528,2.0907,238.71,238.68,6.4607723]
[1733521768728,6.4607723,238.75,238.66,2.0911]
[1733521768930,6.4607723,238.75,238.68,6.4607723]
[1733521769134,2.0907,238.71,238.68,6.4607723]